[Event "*** Titled Tuesday Blitz"]
[Site "Chess.com"]
[Date "2020.11.03"]
[Round "5"]
[White "Sofiia_Hryzlova"]
[Black "PattyCastillo"]
[Result "1-0"]
[WhiteElo "2301"]
[BlackElo "1925"]
[TimeControl "180+1"]
[EndTime "10:57:12 PST"]
[Termination "Sofiia_Hryzlova won by resignation"]

1. c4 {[%clk 0:02:57.2]} 1... c6 {[%clk 0:02:59.5]} 2. Nf3 {[%clk 0:02:54.6]}
2... Nf6 {[%clk 0:02:58.7]} 3. e3 {[%clk 0:02:54.7]} 3... d5 {[%clk 0:02:58.6]}
4. Nc3 {[%clk 0:02:54.8]} 4... e6 {[%clk 0:02:58.4]} 5. b3 {[%clk 0:02:54.1]}
5... Nbd7 {[%clk 0:02:57.7]} 6. Bb2 {[%clk 0:02:52.6]} 6... Bd6 {[%clk
0:02:57.3]} 7. Be2 {[%clk 0:02:49.2]} 7... O-O {[%clk 0:02:56.5]} 8. Qc2 {[%clk
0:02:48.4]} 8... Qe7 {[%clk 0:02:56.3]} 9. Rg1 {[%clk 0:02:44.6]} 9... e5 {[%clk
0:02:54.9]} 10. cxd5 {[%clk 0:02:38.9]} 10... cxd5 {[%clk 0:02:54.7]} 11. Nb5
{[%clk 0:02:38.5]} 11... Bb8 {[%clk 0:02:50.8]} 12. Ba3 {[%clk 0:02:37.7]} 12...
Qe8 {[%clk 0:02:36.2]} 13. Bxf8 {[%clk 0:02:35.2]} 13... Qxf8 {[%clk 0:02:36]}
14. Rc1 {[%clk 0:02:34]} 14... a6 {[%clk 0:02:30.3]} 15. Qxc8 {[%clk 0:02:31.1]}
15... axb5 {[%clk 0:02:20.2]} 16. Qxb7 {[%clk 0:02:27.1]} 16... Bd6 {[%clk
0:02:16.5]} 17. g4 {[%clk 0:01:59]} 17... e4 {[%clk 0:02:13.1]} 18. Nd4 {[%clk
0:01:56.7]} 18... Nc5 {[%clk 0:02:11.4]} 19. Qxb5 {[%clk 0:01:53.9]} 19... Rb8
{[%clk 0:02:06.9]} 20. Qa5 {[%clk 0:01:42.9]} 20... Nd3+ {[%clk 0:01:58.5]} 21.
Bxd3 {[%clk 0:01:41.9]} 21... exd3 {[%clk 0:01:59]} 22. Qc3 {[%clk 0:01:39.3]}
22... Bxh2 {[%clk 0:01:49.6]} 23. Rg2 {[%clk 0:01:37.6]} 23... Be5 {[%clk
0:01:48.3]} 24. Qxd3 {[%clk 0:01:35.4]} 24... h6 {[%clk 0:01:39.1]} 25. f4
{[%clk 0:01:26.8]} 25... Bd6 {[%clk 0:01:35]} 26. Nf5 {[%clk 0:01:24]} 26... Ba3
{[%clk 0:01:30.5]} 27. Rb1 {[%clk 0:01:20.4]} 27... Rd8 {[%clk 0:01:19.2]} 28.
g5 {[%clk 0:01:09.4]} 28... Ne4 {[%clk 0:01:06.6]} 29. gxh6 {[%clk 0:01:01.7]}
29... g6 {[%clk 0:01:06.2]} 30. h7+ {[%clk 0:00:56.5]} 30... Kh8 {[%clk
0:01:03.4]} 31. Qd4+ {[%clk 0:00:51.3]} 31... f6 {[%clk 0:01:02]} 32. Rxg6
{[%clk 0:00:48.3]} 1-0

[Event "*** Titled Tuesday Blitz"]
[Site "Chess.com"]
[Date "2020.11.03"]
[Round "5"]
[White "Andreikka"]
[Black "ftorodent"]
[Result "1-0"]
[WhiteElo "2914"]
[BlackElo "2664"]
[TimeControl "180+1"]
[EndTime "10:57:14 PST"]
[Termination "Andreikka won by resignation"]

1. e4 {[%clk 0:02:59]} 1... e6 {[%clk 0:02:59.6]} 2. d4 {[%clk 0:02:57.3]} 2...
d5 {[%clk 0:02:59.5]} 3. e5 {[%clk 0:02:55.5]} 3... c5 {[%clk 0:02:58.9]} 4. c3
{[%clk 0:02:55.8]} 4... Qb6 {[%clk 0:02:58.8]} 5. Nf3 {[%clk 0:02:55.9]} 5...
Nc6 {[%clk 0:02:58.9]} 6. a3 {[%clk 0:02:55.2]} 6... Nh6 {[%clk 0:02:58.4]} 7.
Bd3 {[%clk 0:02:53.6]} 7... cxd4 {[%clk 0:02:46.7]} 8. cxd4 {[%clk 0:02:52.9]}
8... Nf5 {[%clk 0:02:46.8]} 9. Bxf5 {[%clk 0:02:50.1]} 9... exf5 {[%clk
0:02:47]} 10. Nc3 {[%clk 0:02:51]} 10... Be6 {[%clk 0:02:47.1]} 11. O-O {[%clk
0:02:51.9]} 11... Be7 {[%clk 0:02:47]} 12. Ne2 {[%clk 0:02:48]} 12... h6 {[%clk
0:02:42.5]} 13. Nf4 {[%clk 0:02:46.6]} 13... O-O {[%clk 0:02:41.4]} 14. b3
{[%clk 0:02:45.7]} 14... Rac8 {[%clk 0:02:33.5]} 15. Rb1 {[%clk 0:02:40.9]}
15... Qd8 {[%clk 0:02:26]} 16. h3 {[%clk 0:02:39.2]} 16... Qd7 {[%clk
0:02:25.4]} 17. Bd2 {[%clk 0:02:36.1]} 17... Rc7 {[%clk 0:02:24.2]} 18. Ra1
{[%clk 0:02:31.3]} 18... Rfc8 {[%clk 0:02:22.4]} 19. Qe2 {[%clk 0:02:31.9]}
19... Bf8 {[%clk 0:02:11.3]} 20. Qd3 {[%clk 0:02:31.6]} 20... Nb8 {[%clk
0:01:58.3]} 21. Nh4 {[%clk 0:02:24.4]} 21... g5 {[%clk 0:01:40.4]} 22. Nxe6
{[%clk 0:02:23.9]} 22... fxe6 {[%clk 0:01:40.7]} 23. Ng6 {[%clk 0:02:24.4]}
23... Qf7 {[%clk 0:01:18.1]} 24. Nxf8 {[%clk 0:02:21.4]} 24... Kxf8 {[%clk
0:01:18.4]} 25. f4 {[%clk 0:02:20]} 25... Qg7 {[%clk 0:01:04.3]} 26. g4 {[%clk
0:02:11.4]} 26... Rf7 {[%clk 0:01:01.7]} 27. fxg5 {[%clk 0:02:07.7]} 27... hxg5
{[%clk 0:00:35.2]} 28. gxf5 {[%clk 0:02:07.8]} 28... exf5 {[%clk 0:00:22.5]} 29.
Rxf5 {[%clk 0:02:06.1]} 29... Rc7 {[%clk 0:00:23]} 30. Raf1 {[%clk 0:02:02.1]}
30... Rxf5 {[%clk 0:00:20]} 31. Qxf5+ {[%clk 0:02:01.4]} 31... Kg8 {[%clk
0:00:20.2]} 32. Qe6+ {[%clk 0:01:43.9]} 32... Kh7 {[%clk 0:00:18.9]} 33. Rf6
{[%clk 0:01:44.2]} 33... Nc6 {[%clk 0:00:06.7]} 34. Qf5+ {[%clk 0:01:44]} 34...
Kg8 {[%clk 0:00:06]} 35. Rg6 {[%clk 0:01:44]} 1-0

[Event "*** Titled Tuesday Blitz"]
[Site "Chess.com"]
[Date "2020.11.03"]
[Round "5"]
[White "almatyonelove"]
[Black "BanjoKazooieN64"]
[Result "1-0"]
[WhiteElo "2591"]
[BlackElo "2380"]
[TimeControl "180+1"]
[EndTime "10:57:15 PST"]
[Termination "almatyonelove won by resignation"]

1. d4 {[%clk 0:02:59.5]} 1... Nf6 {[%clk 0:02:53.1]} 2. c4 {[%clk 0:02:59.6]}
2... g6 {[%clk 0:02:52.7]} 3. Nc3 {[%clk 0:02:55.2]} 3... Bg7 {[%clk 0:02:52.9]}
4. e4 {[%clk 0:02:55]} 4... d6 {[%clk 0:02:53.4]} 5. h3 {[%clk 0:02:54.9]} 5...
O-O {[%clk 0:02:53.4]} 6. Be3 {[%clk 0:02:55.4]} 6... e5 {[%clk 0:02:50.6]} 7.
d5 {[%clk 0:02:54.4]} 7... Nbd7 {[%clk 0:02:47.8]} 8. g4 {[%clk 0:02:53.4]} 8...
Nc5 {[%clk 0:02:47.2]} 9. Bg2 {[%clk 0:02:51]} 9... c6 {[%clk 0:02:46.2]} 10.
Nge2 {[%clk 0:02:49.2]} 10... cxd5 {[%clk 0:02:43.2]} 11. cxd5 {[%clk
0:02:48.9]} 11... b6 {[%clk 0:02:42]} 12. O-O {[%clk 0:02:48.7]} 12... Ba6
{[%clk 0:02:42.1]} 13. b4 {[%clk 0:02:45.4]} 13... Ncd7 {[%clk 0:02:20.4]} 14.
Qa4 {[%clk 0:02:42.4]} 14... Bc4 {[%clk 0:02:02.7]} 15. Rfc1 {[%clk 0:02:38.9]}
15... a6 {[%clk 0:01:57.5]} 16. Ng3 {[%clk 0:02:35.9]} 16... b5 {[%clk
0:01:52.5]} 17. Qd1 {[%clk 0:02:36.4]} 17... Nb6 {[%clk 0:01:37.2]} 18. a4
{[%clk 0:02:36.3]} 18... Rc8 {[%clk 0:01:31.8]} 19. a5 {[%clk 0:02:32.3]} 19...
Nbd7 {[%clk 0:01:28.8]} 20. Qd2 {[%clk 0:02:32]} 20... Ne8 {[%clk 0:01:26]} 21.
Nd1 {[%clk 0:02:28.4]} 21... f6 {[%clk 0:01:16.9]} 22. Nb2 {[%clk 0:02:27.3]}
22... Rf7 {[%clk 0:01:12.7]} 23. Nxc4 {[%clk 0:02:26.2]} 23... bxc4 {[%clk
0:01:13.2]} 24. Bf1 {[%clk 0:02:25.7]} 24... f5 {[%clk 0:01:03.3]} 25. exf5
{[%clk 0:02:22.7]} 25... gxf5 {[%clk 0:01:03.3]} 26. Nxf5 {[%clk 0:02:22.8]}
26... Rxf5 {[%clk 0:01:03.4]} 27. gxf5 {[%clk 0:02:22.8]} 27... Nef6 {[%clk
0:00:55.2]} 28. Rxc4 {[%clk 0:02:20.7]} 28... Rxc4 {[%clk 0:00:54.7]} 29. Bxc4
{[%clk 0:02:21]} 29... Ne4 {[%clk 0:00:53.1]} 30. Qc2 {[%clk 0:02:14.5]} 30...
Qh4 {[%clk 0:00:52.8]} 31. Bxa6 {[%clk 0:02:14]} 31... Ndf6 {[%clk 0:00:49.9]}
32. Bf1 {[%clk 0:02:13.1]} 32... Ng5 {[%clk 0:00:35.5]} 33. a6 {[%clk
0:02:05.5]} 33... Nxh3+ {[%clk 0:00:32.9]} 34. Bxh3 {[%clk 0:02:04.8]} 34...
Qxh3 {[%clk 0:00:33.8]} 35. a7 {[%clk 0:02:00.7]} 35... Qg4+ {[%clk 0:00:31]}
36. Kf1 {[%clk 0:01:59.5]} 36... Qh3+ {[%clk 0:00:29.2]} 37. Ke2 {[%clk
0:01:59.4]} 37... Qg4+ {[%clk 0:00:29.5]} 38. Kd2 {[%clk 0:01:58.7]} 38... Qxb4+
{[%clk 0:00:19.9]} 39. Kd1 {[%clk 0:01:54.6]} 39... Nxd5 {[%clk 0:00:12.4]} 1-0

[Event "*** Titled Tuesday Blitz"]
[Site "Chess.com"]
[Date "2020.11.03"]
[Round "5"]
[White "Sokoloco"]
[Black "SophieNikoladze"]
[Result "1-0"]
[WhiteElo "2441"]
[BlackElo "2276"]
[TimeControl "180+1"]
[EndTime "10:57:17 PST"]
[Termination "Sokoloco won by checkmate"]

1. b3 {[%clk 0:03:00.9]} 1... e5 {[%clk 0:02:58.6]} 2. Bb2 {[%clk 0:02:56.8]}
2... d6 {[%clk 0:02:58.7]} 3. e3 {[%clk 0:02:56]} 3... Be6 {[%clk 0:02:58.7]} 4.
c4 {[%clk 0:02:51.2]} 4... f5 {[%clk 0:02:57.9]} 5. Nc3 {[%clk 0:02:51.4]} 5...
c6 {[%clk 0:02:56.6]} 6. d4 {[%clk 0:02:50.8]} 6... Nf6 {[%clk 0:02:53.5]} 7.
dxe5 {[%clk 0:02:49.7]} 7... dxe5 {[%clk 0:02:52.9]} 8. Qxd8+ {[%clk 0:02:50.3]}
8... Kxd8 {[%clk 0:02:53.1]} 9. Nf3 {[%clk 0:02:46.8]} 9... Nbd7 {[%clk
0:02:50.6]} 10. O-O-O {[%clk 0:02:20.7]} 10... Kc7 {[%clk 0:02:50.2]} 11. e4
{[%clk 0:02:07.2]} 11... f4 {[%clk 0:02:47]} 12. Ng5 {[%clk 0:02:05.2]} 12...
Bg8 {[%clk 0:02:46.3]} 13. f3 {[%clk 0:01:58.6]} 13... h6 {[%clk 0:02:44.9]} 14.
Nh3 {[%clk 0:01:58.9]} 14... Bd6 {[%clk 0:02:40.6]} 15. Nf2 {[%clk 0:01:55.5]}
15... a5 {[%clk 0:02:36.6]} 16. Be2 {[%clk 0:01:54.7]} 16... Be6 {[%clk
0:02:33.5]} 17. Nd3 {[%clk 0:01:53.2]} 17... g5 {[%clk 0:02:31]} 18. Rd2 {[%clk
0:01:51.7]} 18... Rab8 {[%clk 0:02:26.1]} 19. Rhd1 {[%clk 0:01:51.7]} 19... Ne8
{[%clk 0:02:24.4]} 20. Na4 {[%clk 0:01:48.1]} 20... b5 {[%clk 0:02:19.1]} 21. c5
{[%clk 0:01:27.2]} 21... bxa4 {[%clk 0:02:17.9]} 22. cxd6+ {[%clk 0:01:15.4]}
22... Kc8 {[%clk 0:02:13.8]} 23. bxa4 {[%clk 0:01:02.8]} 23... Rh7 {[%clk
0:01:53.6]} 24. Nxe5 {[%clk 0:01:02.3]} 24... Nxe5 {[%clk 0:01:53.2]} 25. Bxe5
{[%clk 0:00:58.5]} 25... Kd7 {[%clk 0:01:47.7]} 26. Rb2 {[%clk 0:00:54.6]} 26...
Rb4 {[%clk 0:01:39]} 27. Rdd2 {[%clk 0:00:44.2]} 27... Rf7 {[%clk 0:01:32.5]}
28. a3 {[%clk 0:00:36.3]} 28... Rxa4 {[%clk 0:01:32]} 29. Rb7+ {[%clk
0:00:32.9]} 29... Kd8 {[%clk 0:01:30.7]} 30. Rb8+ {[%clk 0:00:21.4]} 30... Kd7
{[%clk 0:01:30.2]} 31. Ba6 {[%clk 0:00:19.5]} 31... Bc4 {[%clk 0:01:23.7]} 32.
Bc8+ {[%clk 0:00:18.4]} 32... Kd8 {[%clk 0:01:22.1]} 33. Be6# {[%clk 0:00:18.8]}
1-0

[Event "*** Titled Tuesday Blitz"]
[Site "Chess.com"]
[Date "2020.11.03"]
[Round "5"]
[White "MichailovM"]
[Black "kidagent"]
[Result "0-1"]
[WhiteElo "2432"]
[BlackElo "2298"]
[TimeControl "180+1"]
[EndTime "10:57:19 PST"]
[Termination "kidagent won by resignation"]

1. e4 {[%clk 0:03:00.9]} 1... c5 {[%clk 0:02:59.7]} 2. Nf3 {[%clk 0:03:00.9]}
2... d6 {[%clk 0:02:59.9]} 3. d4 {[%clk 0:03:01.5]} 3... cxd4 {[%clk 0:03:00.8]}
4. Nxd4 {[%clk 0:03:01.7]} 4... Nf6 {[%clk 0:03:00.1]} 5. Nc3 {[%clk 0:03:01.8]}
5... a6 {[%clk 0:03:00.5]} 6. Bg5 {[%clk 0:03:01.7]} 6... e6 {[%clk 0:03:00.4]}
7. f4 {[%clk 0:03:01.9]} 7... b5 {[%clk 0:03:00.6]} 8. Qe2 {[%clk 0:02:56]} 8...
Be7 {[%clk 0:02:56.4]} 9. a3 {[%clk 0:02:49.8]} 9... Bb7 {[%clk 0:02:54.2]} 10.
O-O-O {[%clk 0:02:49.5]} 10... Nbd7 {[%clk 0:02:50.6]} 11. h4 {[%clk 0:02:47.8]}
11... O-O {[%clk 0:02:47.7]} 12. e5 {[%clk 0:02:45.7]} 12... dxe5 {[%clk
0:02:40.4]} 13. fxe5 {[%clk 0:02:45.6]} 13... Nd5 {[%clk 0:02:38.8]} 14. Nxd5
{[%clk 0:02:41.8]} 14... Bxd5 {[%clk 0:02:35]} 15. Bxe7 {[%clk 0:02:23.6]} 15...
Qxe7 {[%clk 0:02:34.5]} 16. Rh3 {[%clk 0:02:22.1]} 16... Rac8 {[%clk 0:02:28.7]}
17. Qe3 {[%clk 0:02:18.4]} 17... Rc7 {[%clk 0:02:05.8]} 18. Bd3 {[%clk
0:02:16.7]} 18... Rfc8 {[%clk 0:01:59.4]} 19. Kb1 {[%clk 0:02:15.1]} 19... Nc5
{[%clk 0:01:56.8]} 20. h5 {[%clk 0:01:59]} 20... Nxd3 {[%clk 0:01:55.5]} 21.
Rxd3 {[%clk 0:01:55.5]} 21... b4 {[%clk 0:01:48.2]} 22. h6 {[%clk 0:01:53.4]}
22... g6 {[%clk 0:01:38.3]} 23. Qd2 {[%clk 0:01:26.8]} 23... bxa3 {[%clk
0:01:35.9]} 24. Rxa3 {[%clk 0:01:27.7]} 24... Bb7 {[%clk 0:01:24]} 25. Rhb3
{[%clk 0:01:18.6]} 25... Rd7 {[%clk 0:01:16.4]} 26. Qe3 {[%clk 0:01:10.8]} 26...
Bxg2 {[%clk 0:01:11.4]} 27. Rxa6 {[%clk 0:01:08.4]} 27... Rcd8 {[%clk
0:01:10.9]} 28. c3 {[%clk 0:00:53]} 28... Qh4 {[%clk 0:01:10.5]} 29. Rab6 {[%clk
0:00:47.4]} 29... Qh1+ {[%clk 0:01:07.5]} 30. Qc1 {[%clk 0:00:47.3]} 30... Be4+
{[%clk 0:00:58]} 31. Nc2 {[%clk 0:00:41.4]} 31... Qxc1+ {[%clk 0:00:55.5]} 0-1

[Event "*** Titled Tuesday Blitz"]
[Site "Chess.com"]
[Date "2020.11.03"]
[Round "5"]
[White "tsaruk_maks"]
[Black "Nemsko"]
[Result "1-0"]
[WhiteElo "2575"]
[BlackElo "2378"]
[TimeControl "180+1"]
[EndTime "10:57:21 PST"]
[Termination "tsaruk_maks won by resignation"]

1. e4 {[%clk 0:03:00.9]} 1... e5 {[%clk 0:02:58.8]} 2. Nf3 {[%clk 0:03:00.6]}
2... Nc6 {[%clk 0:02:58.2]} 3. Bb5 {[%clk 0:03:01]} 3... a6 {[%clk 0:02:58.2]}
4. Ba4 {[%clk 0:03:01.4]} 4... Nf6 {[%clk 0:02:58.4]} 5. O-O {[%clk 0:03:01.7]}
5... Be7 {[%clk 0:02:58.7]} 6. Re1 {[%clk 0:03:01.6]} 6... b5 {[%clk 0:02:58]}
7. Bb3 {[%clk 0:03:02.2]} 7... d6 {[%clk 0:02:58.4]} 8. c3 {[%clk 0:03:02.2]}
8... O-O {[%clk 0:02:59.1]} 9. h3 {[%clk 0:03:02.1]} 9... Nb8 {[%clk 0:02:58.5]}
10. d4 {[%clk 0:03:02.2]} 10... Nbd7 {[%clk 0:02:59]} 11. Nbd2 {[%clk 0:03:02]}
11... Re8 {[%clk 0:02:57.4]} 12. Ng5 {[%clk 0:03:00.5]} 12... Rf8 {[%clk
0:02:54.1]} 13. Ngf3 {[%clk 0:03:01]} 13... Bb7 {[%clk 0:02:53.8]} 14. Bc2
{[%clk 0:03:00.6]} 14... Re8 {[%clk 0:02:53.7]} 15. Nf1 {[%clk 0:03:01.2]} 15...
Bf8 {[%clk 0:02:49.9]} 16. Ng3 {[%clk 0:03:01.6]} 16... g6 {[%clk 0:02:48]} 17.
Bg5 {[%clk 0:03:02.2]} 17... Bg7 {[%clk 0:02:44.3]} 18. Bd2 {[%clk 0:03:02.6]}
18... Nf8 {[%clk 0:02:43.5]} 19. a4 {[%clk 0:03:01.4]} 19... c6 {[%clk
0:02:43.5]} 20. Bd3 {[%clk 0:03:01.2]} 20... Qc7 {[%clk 0:02:43.4]} 21. Qc2
{[%clk 0:02:55.9]} 21... Ne6 {[%clk 0:02:35.2]} 22. b4 {[%clk 0:02:50.7]} 22...
Nd7 {[%clk 0:02:27.8]} 23. Be3 {[%clk 0:02:42.1]} 23... Nb6 {[%clk 0:02:15]} 24.
a5 {[%clk 0:02:23.6]} 24... Nd7 {[%clk 0:02:09.3]} 25. dxe5 {[%clk 0:02:21.5]}
25... Nxe5 {[%clk 0:01:56.2]} 26. Nxe5 {[%clk 0:02:20.8]} 26... Bxe5 {[%clk
0:01:38.8]} 27. Ne2 {[%clk 0:02:05.3]} 27... c5 {[%clk 0:01:33.3]} 28. Qa2
{[%clk 0:01:42.9]} 28... cxb4 {[%clk 0:01:24.5]} 29. cxb4 {[%clk 0:01:43.8]}
29... Bxa1 {[%clk 0:01:24.1]} 30. Qxa1 {[%clk 0:01:43.9]} 30... Rac8 {[%clk
0:01:22]} 31. Bh6 {[%clk 0:01:41.3]} 31... d5 {[%clk 0:01:13.5]} 32. exd5 {[%clk
0:01:26.9]} 32... Bxd5 {[%clk 0:01:13.6]} 33. Nf4 {[%clk 0:01:27]} 33... Qc3
{[%clk 0:00:34.9]} 34. Qxc3 {[%clk 0:01:27.1]} 34... Rxc3 {[%clk 0:00:35.8]} 35.
Nxd5 {[%clk 0:01:27.6]} 35... Rxd3 {[%clk 0:00:36.4]} 36. Nf6+ {[%clk
0:01:28.1]} 36... Kh8 {[%clk 0:00:37.1]} 37. Nxe8 {[%clk 0:01:27.8]} 37... Rb3
{[%clk 0:00:36.8]} 38. Rc1 {[%clk 0:01:21.4]} 38... Rxb4 {[%clk 0:00:30.6]} 39.
Rc8 {[%clk 0:01:21]} 39... Rc4 {[%clk 0:00:31.2]} 40. Nc7+ {[%clk 0:01:21.2]}
1-0

[Event "*** Titled Tuesday Blitz"]
[Site "Chess.com"]
[Date "2020.11.03"]
[Round "5"]
[White "Karacsonyi_Gellert"]
[Black "Oleksandr_Bortnyk"]
[Result "0-1"]
[WhiteElo "2667"]
[BlackElo "2918"]
[TimeControl "180+1"]
[EndTime "10:57:23 PST"]
[Termination "Oleksandr_Bortnyk won on time"]

1. e4 {[%clk 0:02:34.4]} 1... c5 {[%clk 0:02:58.5]} 2. Nf3 {[%clk 0:02:33.6]}
2... d6 {[%clk 0:02:58.4]} 3. d4 {[%clk 0:02:33.3]} 3... cxd4 {[%clk 0:02:59.3]}
4. Nxd4 {[%clk 0:02:33.9]} 4... Nf6 {[%clk 0:03:00.1]} 5. Nc3 {[%clk 0:02:34.3]}
5... g6 {[%clk 0:03:00.7]} 6. Be3 {[%clk 0:02:34]} 6... a6 {[%clk 0:03:00.8]} 7.
f3 {[%clk 0:02:33.6]} 7... Bg7 {[%clk 0:02:59.1]} 8. Qd2 {[%clk 0:02:34.1]} 8...
h5 {[%clk 0:02:59.3]} 9. O-O-O {[%clk 0:02:33.8]} 9... b5 {[%clk 0:02:59.8]} 10.
h3 {[%clk 0:02:31.9]} 10... Bb7 {[%clk 0:02:55.4]} 11. Be2 {[%clk 0:02:32.2]}
11... Nbd7 {[%clk 0:02:54.4]} 12. g4 {[%clk 0:02:32]} 12... Ne5 {[%clk
0:02:37.2]} 13. g5 {[%clk 0:02:20.8]} 13... Nfd7 {[%clk 0:02:32.9]} 14. f4
{[%clk 0:02:21.2]} 14... Nc4 {[%clk 0:02:32.8]} 15. Bxc4 {[%clk 0:02:21.7]}
15... bxc4 {[%clk 0:02:33.7]} 16. Rhf1 {[%clk 0:02:19.2]} 16... Qa5 {[%clk
0:02:28.6]} 17. Kb1 {[%clk 0:02:03.5]} 17... Nc5 {[%clk 0:02:23.7]} 18. f5
{[%clk 0:01:59.5]} 18... Be5 {[%clk 0:02:18.7]} 19. fxg6 {[%clk 0:01:42.7]}
19... fxg6 {[%clk 0:02:18.7]} 20. Qf2 {[%clk 0:01:43.3]} 20... Rh7 {[%clk
0:01:44]} 21. Nd5 {[%clk 0:01:28.4]} 21... Nxe4 {[%clk 0:01:37.2]} 22. Ne6
{[%clk 0:00:03.3]} 22... Nxf2 {[%clk 0:01:27.6]} 23. Ndc7+ {[%clk 0:00:03.5]}
23... Kd7 {[%clk 0:01:25.2]} 24. Rxf2 {[%clk 0:00:04.1]} 24... Rc8 {[%clk
0:01:18.4]} 25. c3 {[%clk 0:00:01.4]} 25... Rhh8 {[%clk 0:01:11.4]} 0-1

[Event "*** Titled Tuesday Blitz"]
[Site "Chess.com"]
[Date "2020.11.03"]
[Round "5"]
[White "tk22h"]
[Black "lelajavakhishvili"]
[Result "1/2-1/2"]
[WhiteElo "2382"]
[BlackElo "2531"]
[TimeControl "180+1"]
[EndTime "10:57:25 PST"]
[Termination "Game drawn by repetition"]

1. c4 {[%clk 0:03:00.9]} 1... Nf6 {[%clk 0:02:58.7]} 2. Nc3 {[%clk 0:03:00.5]}
2... c5 {[%clk 0:02:53.9]} 3. Nf3 {[%clk 0:03:00]} 3... Nc6 {[%clk 0:02:53.3]}
4. g3 {[%clk 0:02:59.4]} 4... g6 {[%clk 0:02:52.8]} 5. Bg2 {[%clk 0:02:59.1]}
5... Bg7 {[%clk 0:02:53.7]} 6. d4 {[%clk 0:02:59.7]} 6... cxd4 {[%clk
0:02:53.1]} 7. Nxd4 {[%clk 0:03:00.6]} 7... O-O {[%clk 0:02:53.3]} 8. O-O {[%clk
0:03:00.2]} 8... Nxd4 {[%clk 0:02:53.7]} 9. Qxd4 {[%clk 0:03:00]} 9... d6 {[%clk
0:02:54.6]} 10. Qd3 {[%clk 0:03:00.1]} 10... Nd7 {[%clk 0:02:53.4]} 11. b3
{[%clk 0:02:57.4]} 11... Ne5 {[%clk 0:02:50.7]} 12. Qd2 {[%clk 0:02:56.8]} 12...
a6 {[%clk 0:02:44.4]} 13. Bb2 {[%clk 0:02:56.6]} 13... Rb8 {[%clk 0:02:44.3]}
14. Rad1 {[%clk 0:02:54.3]} 14... Bf5 {[%clk 0:02:29]} 15. Nd5 {[%clk
0:02:51.5]} 15... b5 {[%clk 0:02:25.7]} 16. f4 {[%clk 0:02:49.6]} 16... Nd7
{[%clk 0:02:07.4]} 17. Bxg7 {[%clk 0:02:48.5]} 17... Kxg7 {[%clk 0:02:08.1]} 18.
e4 {[%clk 0:02:48.1]} 18... Bg4 {[%clk 0:02:05.6]} 19. Rc1 {[%clk 0:02:43]}
19... bxc4 {[%clk 0:02:03.3]} 20. Rxc4 {[%clk 0:02:41.9]} 20... Nb6 {[%clk
0:01:58.9]} 21. Qd4+ {[%clk 0:02:25.6]} 21... Kg8 {[%clk 0:01:38.5]} 22. Rc6
{[%clk 0:02:22.3]} 22... Nxd5 {[%clk 0:01:34.3]} 23. exd5 {[%clk 0:02:22.4]}
23... Qa5 {[%clk 0:01:22.8]} 24. Rc2 {[%clk 0:02:17.2]} 24... Rfc8 {[%clk
0:01:18.3]} 25. Rfc1 {[%clk 0:02:17]} 25... Rxc2 {[%clk 0:01:17.5]} 26. Rxc2
{[%clk 0:02:16.2]} 26... Qe1+ {[%clk 0:01:12.8]} 27. Bf1 {[%clk 0:02:16.2]}
27... Bf3 {[%clk 0:00:54.4]} 28. Rf2 {[%clk 0:02:06.6]} 28... Bg4 {[%clk
0:00:50.2]} 29. Kg2 {[%clk 0:02:05.7]} 29... Bf5 {[%clk 0:00:48.4]} 30. Bd3
{[%clk 0:01:54.8]} 30... Bxd3 {[%clk 0:00:46.2]} 31. Qxd3 {[%clk 0:01:54.8]}
31... Rc8 {[%clk 0:00:46]} 32. Re2 {[%clk 0:01:53.8]} 32... Qc1 {[%clk
0:00:35.5]} 33. Rxe7 {[%clk 0:01:51.3]} 33... Rc2+ {[%clk 0:00:29.4]} 34. Re2
{[%clk 0:01:50.5]} 34... Rxe2+ {[%clk 0:00:29.4]} 35. Qxe2 {[%clk 0:01:50.2]}
35... Qa3 {[%clk 0:00:30.1]} 36. f5 {[%clk 0:01:39.4]} 36... gxf5 {[%clk
0:00:28.4]} 37. Qd2 {[%clk 0:01:37.2]} 37... a5 {[%clk 0:00:24.9]} 38. Qg5+
{[%clk 0:01:33.9]} 38... Kf8 {[%clk 0:00:24.5]} 39. Qd8+ {[%clk 0:01:32.3]}
39... Kg7 {[%clk 0:00:24.6]} 40. Qg5+ {[%clk 0:01:31.9]} 40... Kf8 {[%clk
0:00:24.5]} 41. Qd8+ {[%clk 0:01:31.7]} 41... Kg7 {[%clk 0:00:24.8]} 42. Qg5+
{[%clk 0:01:31.6]} 42... Kf8 {[%clk 0:00:23.5]} 1/2-1/2

[Event "*** Titled Tuesday Blitz"]
[Site "Chess.com"]
[Date "2020.11.03"]
[Round "5"]
[White "Kolle05"]
[Black "Alomaterapia"]
[Result "0-1"]
[WhiteElo "2356"]
[BlackElo "2511"]
[TimeControl "180+1"]
[EndTime "10:57:31 PST"]
[Termination "Alomaterapia won by resignation"]

1. e4 {[%clk 0:03:00.9]} 1... e5 {[%clk 0:02:59.7]} 2. Nf3 {[%clk 0:03:00.5]}
2... Nc6 {[%clk 0:03:00]} 3. Bb5 {[%clk 0:03:00.3]} 3... a6 {[%clk 0:03:00]} 4.
Ba4 {[%clk 0:03:00.2]} 4... Nf6 {[%clk 0:03:00.5]} 5. O-O {[%clk 0:03:00.5]}
5... Be7 {[%clk 0:03:00.8]} 6. Re1 {[%clk 0:03:00]} 6... b5 {[%clk 0:03:00.3]}
7. Bb3 {[%clk 0:03:00]} 7... O-O {[%clk 0:02:59.3]} 8. a4 {[%clk 0:02:59.5]}
8... Bb7 {[%clk 0:02:47.9]} 9. c3 {[%clk 0:02:55.5]} 9... d5 {[%clk 0:02:38.9]}
10. d4 {[%clk 0:02:16.3]} 10... dxe4 {[%clk 0:02:30.1]} 11. Nxe5 {[%clk
0:02:14.5]} 11... Nxe5 {[%clk 0:02:30]} 12. dxe5 {[%clk 0:02:15.4]} 12... Qxd1
{[%clk 0:02:29.9]} 13. Rxd1 {[%clk 0:02:16.3]} 13... Ng4 {[%clk 0:02:27.8]} 14.
Bf4 {[%clk 0:02:15.9]} 14... Bc5 {[%clk 0:02:23.4]} 15. Bg3 {[%clk 0:01:30.1]}
15... e3 {[%clk 0:02:19.6]} 16. f3 {[%clk 0:00:19.3]} 16... e2+ {[%clk
0:02:15.8]} 17. Rd4 {[%clk 0:00:16]} 17... Nxe5 {[%clk 0:01:30.6]} 18. Nd2
{[%clk 0:00:15.1]} 18... Rfe8 {[%clk 0:01:12.5]} 19. axb5 {[%clk 0:00:09.6]}
19... axb5 {[%clk 0:01:12.2]} 20. Rxa8 {[%clk 0:00:09.3]} 20... Bxa8 {[%clk
0:01:12.2]} 21. Bf2 {[%clk 0:00:04.6]} 21... Nd3 {[%clk 0:00:58.4]} 22. Re4
{[%clk 0:00:02.6]} 0-1